bitfinex/quotes_ETHUSD_20250803
["timestamp","ask_amount","ask_price","bid_price","bid_amount"]
[1754201150468,35.14834622,3452.7,3452.6,0.002]
[1754201151437,35.61324622,3452.7,3452.6,0.002]
[1754201153777,5.61324622,3452.7,3452.6,0.002]
[1754201153976,35.61324622,3452.7,3452.6,0.002]
[1754201154774,35.14834622,3452.7,3452.6,0.002]
[1754201155277,38.01659329,3452.7,3452.6,0.002]
[1754201155686,37.53149329,3452.7,3452.6,0.002]
[1754201157289,38.48759329,3452.7,3452.6,0.002]
[1754201157483,47.50432877,3452.7,3452.6,0.002]
[1754201158174,54.65432877,3452.7,3452.6,0.002]
[1754201160282,57.55061283,3452.7,3452.6,0.002]
[1754201160709,57.55061283,3452.7,3452.5,0.002]
[1754201160710,5.18836795,3452.6,3452.5,0.002]
[1754201160989,5.18836795,3452.6,3452.3,0.002]
[1754201160990,2.292,3452.4,3452.3,0.002]
[1754201161159,6.99045291,3452.4,3452.3,0.002]
[1754201161486,37.91034622,3452.4,3452.3,0.002]
[1754201163981,37.90755132,3452.4,3452.3,0.002]
[1754201164197,45.05755132,3452.4,3452.3,0.002]
[1754201164362,47.92579839,3452.4,3452.3,0.002]
[1754201165065,17.92579839,3452.4,3452.3,0.002]
[1754201165395,47.92879839,3452.4,3452.3,0.002]
[1754201166497,43.53479839,3452.4,3452.3,0.002]
[1754201166685,47.92879839,3452.4,3452.3,0.002]
[1754201167058,17.92879839,3452.4,3452.3,0.002]
[1754201167360,47.92879839,3452.4,3452.3,0.002]
[1754201169501,47.92772015,3452.4,3452.3,0.002]
[1754201170908,43.53372015,3452.4,3452.3,0.002]
[1754201171110,47.46282015,3452.4,3452.3,0.002]
[1754201171309,17.46282015,3452.4,3452.3,0.002]
[1754201171509,47.46282015,3452.4,3452.3,0.002]
[1754201171709,47.46281777,3452.4,3452.3,0.002]
[1754201173498,47.92771777,3452.4,3452.3,0.002]
[1754201174390,47.46281777,3452.4,3452.3,0.002]
[1754201174593,47.46278313,3452.4,3452.3,0.002]
[1754201174795,47.46178313,3452.4,3452.3,0.002]
[1754201177804,54.43178313,3452.4,3452.3,0.002]
[1754201179018,54.89668313,3452.4,3452.3,0.002]
[1754201179498,24.89668313,3452.4,3452.3,0.002]
[1754201179810,54.89668313,3452.4,3452.3,0.002]
[1754201182325,54.43178313,3452.4,3452.3,0.002]
[1754201182611,53.94058313,3452.4,3452.3,0.002]
[1754201183272,54.43153724,3452.4,3452.3,0.002]
[1754201184413,54.42853724,3452.4,3452.3,0.002]
[1754201189220,54.42934076,3452.4,3452.3,0.002]
[1754201189391,54.90194076,3452.4,3452.3,0.002]
[1754201191421,24.90194076,3452.4,3452.3,0.002]
[1754201191583,54.90194076,3452.4,3452.3,0.002]
[1754201192418,24.90194076,3452.4,3452.3,0.002]
[1754201192589,54.90194076,3452.4,3452.3,0.002]
[1754201195621,24.90194076,3452.4,3452.3,0.002]
[1754201195920,54.90194076,3452.4,3452.3,0.002]
[1754201196488,24.90194076,3452.4,3452.3,0.002]
[1754201196926,54.90194076,3452.4,3452.3,0.002]
[1754201197724,24.90194076,3452.4,3452.3,0.002]
[1754201197900,54.90194076,3452.4,3452.3,0.002]
[1754201200655,57.7984765,3452.4,3452.3,0.002]
[1754201201701,57.52718791,3452.4,3452.3,0.002]
[1754201203025,54.63065217,3452.4,3452.3,0.002]
[1754201203232,54.15805217,3452.4,3452.3,0.002]
[1754201203612,49.27745217,3452.4,3452.3,0.002]
[1754201203811,53.66545217,3452.4,3452.3,0.484]
[1754201205448,53.66445217,3452.4,3452.3,0.484]
[1754201206840,53.93557738,3452.4,3452.3,0.484]
[1754201208463,53.93557738,3452.4,3452.3,0.002]
[1754201209559,49.54857738,3452.4,3452.3,0.002]
[1754201209725,50.52012521,3452.4,3452.3,0.9105]
[1754201210057,21.07012521,3452.4,3452.3,0.9105]
[1754201210376,51.07012521,3452.4,3452.3,0.9105]
[1754201212639,51.07004595,3452.4,3452.3,0.9105]
[1754201216171,21.07004595,3452.4,3452.3,0.9105]
[1754201216459,53.17826455,3452.4,3452.3,0.468]
[1754201216963,53.67456455,3452.4,3452.3,0.002]
[1754201217162,24.13096455,3452.4,3452.3,0.002]
[1754201217354,54.13096455,3452.4,3452.3,0.002]
[1754201218157,54.13196455,3452.4,3452.3,0.002]
[1754201221440,57.02850029,3452.4,3452.3,0.002]
[1754201222768,57.02833621,3452.4,3452.3,0.002]
[1754201223672,54.13180047,3452.4,3452.3,0.002]
[1754201224668,53.63550047,3452.4,3452.3,0.002]
[1754201224867,2.292,3451.7,3451.4,0.466]
[1754201225075,39.82112894,3451.7,3451.4,0.466]
[1754201226067,40.04255453,3451.7,3451.4,0.466]
[1754201226282,40.04251911,3451.7,3451.6,0.9105]
[1754201227473,47.01251911,3451.7,3451.6,0.9105]
[1754201230337,17.01251911,3451.7,3451.6,0.9105]
[1754201230540,47.01251911,3451.7,3451.6,0.9105]
[1754201230981,17.01251911,3451.7,3451.6,0.9105]
[1754201231167,47.01251911,3451.7,3451.6,0.9105]
[1754201231974,17.01251911,3451.7,3451.6,0.9105]
[1754201232177,47.01251911,3451.7,3451.6,0.9105]
[1754201233879,47.01251911,3451.7,3451.6,0.002]
[1754201235183,47.01251911,3451.7,3451.6,0.468]
[1754201235360,47.00951911,3451.7,3451.6,0.468]
[1754201235557,47.00951911,3451.7,3451.6,0.002]
[1754201237977,54.15951911,3451.7,3451.6,0.002]
[1754201239298,54.15951911,3451.7,3451.6,0.9105]
[1754201241295,54.15951911,3451.7,3451.6,0.002]
[1754201242995,54.15951911,3451.7,3451.6,0.4946]
[1754201243185,54.15951911,3451.7,3451.6,0.9302]
[1754201243582,51.29127204,3451.7,3451.6,0.4946]
[1754201243809,51.29127204,3451.7,3451.6,0.9302]
[1754201244116,48.77784645,3451.7,3451.6,0.9302]
[1754201247121,41.62784645,3451.7,3451.6,0.9302]
[1754201248401,11.62784645,3451.7,3451.6,0.9302]
[1754201248604,41.62784645,3451.7,3451.6,0.9302]
[1754201251593,41.62775847,3451.7,3451.6,0.9302]
[1754201252723,11.62775847,3451.7,3451.6,0.9302]
[1754201252929,41.62775847,3451.7,3451.6,0.9302]
[1754201253124,44.49600554,3451.7,3451.6,0.9302]
[1754201254436,44.49593838,3451.7,3451.6,0.9302]
[1754201255730,41.62769131,3451.7,3451.6,0.9302]
[1754201257232,41.62669131,3451.7,3451.6,0.9302]
[1754201257535,41.62664864,3451.7,3451.6,0.9302]
[1754201258214,11.62664864,3451.7,3451.6,0.9302]
[1754201258535,41.62664864,3451.7,3451.6,0.9302]
[1754201260947,34.65664864,3451.7,3451.6,0.9302]
[1754201262216,34.65661405,3451.7,3451.6,0.9302]
[1754201266026,4.65661405,3451.7,3451.6,0.9302]
[1754201266228,34.65661405,3451.7,3451.6,0.9302]
[1754201268164,4.65661405,3451.7,3451.6,0.9302]
[1754201268470,34.65661405,3451.7,3451.6,0.9302]
[1754201269168,4.65670618,3451.7,3451.6,0.9302]
[1754201269332,34.65670618,3451.7,3451.6,0.9302]
[1754201269530,0.27070618,3451.7,3451.6,1.77464738]
[1754201269736,4.385,3451.7,3451.6,5.67491145]
[1754201270046,4.385,3451.7,3451.6,5.64593938]
[1754201270229,4.385,3451.8,3451.7,3.0]
[1754201270425,4.385,3451.8,3451.7,1.48379394]
[1754201270867,4.385,3451.8,3451.7,12.07976242]
[1754201271766,0.001,3451.9,3451.8,3.0]
[1754201271999,0.001,3451.9,3451.8,3.94797039]
[1754201272000,4.386,3451.9,3451.8,3.94797039]
[1754201272131,0.001,3451.9,3451.8,4.66877848]
[1754201272673,0.001,3451.9,3451.8,4.63980809]
[1754201280095,0.001,3451.9,3451.8,5.51086709]
[1754201281289,0.001,3451.9,3451.8,1.59186709]
[1754201281606,0.9155,3451.9,3451.8,0.871059]
[1754201281759,0.9155,3451.9,3451.6,0.002]
[1754201282096,0.9145,3451.8,3451.6,0.873059]
[1754201282266,0.9145,3451.7,3451.6,0.002]
[1754201282807,35.3005,3451.7,3451.6,0.002]
[1754201282989,38.16874707,3451.7,3451.6,0.002]
[1754201287664,7.70624707,3451.7,3451.6,0.002]
[1754201287900,4.838,3451.7,3451.6,0.002]
[1754201288183,5.3005,3451.7,3451.6,0.002]
[1754201288387,4.838,3451.7,3451.6,0.002]
[1754201288797,4.386,3451.7,3451.6,0.002]
[1754201289382,4.838,3451.7,3451.6,0.002]
[1754201289588,5.7844,3451.7,3451.6,0.002]
[1754201290227,4.386,3451.7,3451.6,0.002]
[1754201291999,4.386,3451.7,3451.6,0.4803]
[1754201292184,4.3476122,3451.7,3451.6,0.002]
[1754201292586,4.7996122,3451.7,3451.6,0.002]
[1754201293134,5.2621122,3451.7,3451.6,0.002]
[1754201293286,35.79204461,3451.7,3451.6,0.002]
[1754201296722,34.3476122,3451.7,3451.6,0.002]
[1754201297140,35.2621122,3451.7,3451.6,0.002]
[1754201299550,34.7996122,3451.7,3451.6,0.002]
[1754201299927,34.3476122,3451.7,3451.6,0.002]
[1754201300605,4.3476122,3451.7,3451.6,0.002]
[1754201300827,34.3476122,3451.7,3451.6,0.002]
[1754201301047,37.82673071,3451.7,3451.6,0.002]
[1754201307059,34.3476122,3451.7,3451.6,0.002]
[1754201307575,34.61776198,3451.7,3451.6,0.002]
[1754201309168,34.3476122,3451.7,3451.6,0.4935]
[1754201309474,34.3476122,3451.7,3451.6,0.9616]
[1754201309965,34.3476122,3451.7,3451.6,0.002]
[1754201310521,34.3476122,3451.7,3451.6,0.4935]
[1754201310716,34.3476122,3451.7,3451.6,1.20713378]
[1754201310976,4.3476122,3451.7,3451.6,1.67523378]
[1754201311118,0.001,3451.9,3451.6,1.67523378]
[1754201311464,4.385,3451.8,3451.7,0.9596]
[1754201314636,4.385,3451.8,3451.7,0.4915]
[1754201314831,4.385,3451.8,3451.6,0.71563378]
[1754201315034,4.385,3451.8,3451.6,0.002]
[1754201315434,4.8695,3451.8,3451.6,0.002]
[1754201316161,4.385,3451.8,3451.6,0.002]
[1754201322490,4.385,3451.8,3451.6,0.4935]
[1754201323048,4.385,3451.8,3451.7,0.4915]
[1754201323541,4.385,3451.8,3451.6,0.4701]
[1754201323956,4.385,3451.8,3451.6,0.9616]
[1754201324647,4.8695,3451.8,3451.6,0.002]
[1754201324848,4.385,3451.8,3451.6,0.002]
[1754201325044,0.4845,3451.7,3451.6,0.002]
[1754201326283,31.47908,3451.7,3451.6,0.002]
[1754201326881,31.74960744,3451.7,3451.6,0.002]
[1754201327374,31.74960164,3451.7,3451.6,0.002]
[1754201327780,1.47908,3451.7,3451.6,0.002]
[1754201328100,30.4845,3451.7,3451.6,0.002]
[1754201328560,30.9458,3451.7,3451.6,0.002]
[1754201331291,30.4845,3451.7,3451.6,0.002]
[1754201331663,31.18276738,3451.7,3451.6,0.002]
[1754201333979,31.73274098,3451.7,3451.6,0.002]
[1754201334169,34.60098805,3451.7,3451.6,0.002]
[1754201335995,36.34498805,3451.7,3451.6,0.002]
[1754201341365,43.49498805,3451.7,3451.6,0.002]
[1754201344799,43.78538805,3451.7,3451.6,0.002]
[1754201345006,46.6825112,3451.7,3451.6,0.002]
[1754201345181,2.294,3451.3,3451.2,0.002]
[1754201345386,36.98775921,3451.3,3451.2,0.002]
[1754201345693,37.85574098,3451.3,3451.2,0.002]
[1754201346810,10.7531999,3451.3,3451.2,0.002]
[1754201346986,40.7531999,3451.3,3451.2,0.002]
[1754201347188,43.62144697,3451.3,3451.2,0.002]
[1754201347377,43.62040427,3451.3,3451.2,0.002]
[1754201347805,13.62040427,3451.3,3451.2,0.002]
[1754201347986,40.86603143,3451.3,3451.2,0.002]
[1754201349796,40.44033143,3451.3,3451.2,0.002]
[1754201350507,47.59033143,3451.3,3451.2,0.002]
[1754201350711,48.01803143,3451.3,3451.2,0.002]
[1754201350921,42.72483143,3451.3,3451.2,0.002]
[1754201351120,46.56483143,3451.3,3451.2,0.4792]
[1754201351286,47.11483143,3451.3,3451.2,0.4792]
[1754201351486,42.72483143,3451.3,3451.2,0.002]
[1754201351827,47.59133143,3451.3,3451.2,0.002]
[1754201352187,18.01903143,3451.3,3451.2,0.002]
[1754201352616,48.01903143,3451.3,3451.2,0.002]
[1754201352895,54.74376691,3451.3,3451.2,0.002]
[1754201353111,54.74359591,3451.3,3451.2,0.002]
[1754201355092,57.64105483,3451.3,3451.2,0.002]
[1754201355328,55.03399591,3451.3,3451.2,0.002]
[1754201355854,57.93145483,3451.3,3451.2,0.002]
[1754201357027,55.03399591,3451.3,3451.2,0.002]
[1754201357327,35.19154288,3451.2,3451.0,0.002]
[1754201357528,45.59151723,3451.2,3451.0,0.002]
[1754201357695,46.49571723,3451.2,3451.0,0.002]
[1754201358823,46.49578107,3451.2,3451.0,0.002]
[1754201359019,16.49578107,3451.2,3451.0,0.002]
[1754201359223,46.49578107,3451.2,3451.0,0.002]
[1754201359436,0.55,3450.8,3450.0,2.028986]
[1754201359604,32.294,3450.1,3450.0,2.028986]
[1754201359801,36.95539112,3450.1,3450.0,2.028986]
[1754201361428,37.45339112,3450.1,3450.0,2.028986]
[1754201361731,38.096621,3450.1,3450.0,2.028986]
[1754201362192,38.3172823,3450.1,3450.0,2.028986]
[1754201362739,38.7914823,3450.1,3450.0,2.028986]
[1754201365406,37.8192823,3450.1,3450.0,2.028986]
[1754201365608,37.8202823,3450.1,3450.0,2.510586]
[1754201365810,37.8202823,3450.1,3450.0,2.966386]
[1754201366031,37.8202823,3450.1,3450.0,2.510586]
[1754201366662,37.8202823,3450.1,3450.0,2.966386]
[1754201367044,37.8202823,3450.1,3450.0,2.028986]
[1754201367045,44.54501778,3450.1,3450.0,2.028986]
[1754201367355,45.04301778,3450.1,3450.0,2.028986]
[1754201367705,44.54501778,3450.1,3450.0,2.028986]
[1754201368644,44.54500315,3450.1,3450.0,2.028986]
[1754201370528,14.54500315,3450.1,3450.0,2.030986]
[1754201370853,44.54500315,3450.1,3450.0,2.030986]
[1754201371014,37.82026767,3450.1,3450.0,2.512586]
[1754201371219,37.82026767,3450.1,3450.0,2.030986]
[1754201372650,44.97026767,3450.1,3450.0,2.030986]
[1754201374233,14.97026767,3450.1,3450.0,2.030986]
[1754201374642,44.97026767,3450.1,3450.0,2.030986]
[1754201375347,15.46826767,3450.1,3450.0,2.030986]
[1754201375522,45.46826767,3450.1,3450.0,2.030986]
[1754201376143,44.97038056,3450.1,3450.0,2.030986]
[1754201377270,51.94438056,3450.1,3450.0,2.030986]
[1754201377682,58.66911604,3450.1,3450.0,2.030986]
[1754201377853,59.64131604,3450.1,3450.0,2.030986]
[1754201380747,62.53978275,3450.1,3450.0,2.030986]
[1754201380944,59.64131604,3450.1,3450.0,2.030986]
[1754201381467,62.53978275,3450.1,3450.0,2.030986]
[1754201382199,62.53978275,3450.1,3450.0,1.17416378]
[1754201382200,75.61778275,3450.1,3450.0,1.17416378]
[1754201382345,2.294,3449.4,3449.3,0.4816]
[1754201382547,36.97548938,3449.4,3449.3,0.4816]
[1754201383281,36.97548938,3449.4,3447.3,6.72473548]
[1754201383282,2.294,3449.2,3448.9,0.4816]
[1754201383473,32.294,3449.0,3448.9,0.4816]
[1754201383778,32.294,3449.0,3447.7,0.872312]
[1754201383779,35.43173645,3449.0,3447.7,0.872312]
[1754201383969,32.294,3448.8,3448.7,0.4558]
[1754201384281,32.56348938,3448.8,3448.7,0.4558]
[1754201384667,32.56348938,3448.8,3448.7,0.4816]
[1754201384899,0.55,3448.6,3448.5,0.4558]
[1754201385087,36.97648938,3448.6,3448.5,0.4558]
[1754201385479,36.97648938,3448.6,3448.5,0.9374]
[1754201386265,2.294,3448.4,3446.8,6.72473548]
[1754201386598,30.0,3448.1,3447.3,0.872462]
[1754201386794,30.0,3447.9,3447.4,0.4558]
[1754201387000,1.744,3448.4,3447.4,0.9374]
[1754201387001,4.413,3447.8,3447.4,0.9374]
[1754201387161,30.0,3447.7,3447.5,0.4816]
[1754201387365,30.0,3448.3,3447.6,0.4558]
[1754201387592,30.0,3448.1,3447.7,0.4816]
[1754201387800,1.744,3448.4,3447.7,0.4816]
[1754201387801,30.0,3447.9,3447.7,0.4816]
[1754201388011,30.55,3448.3,3447.8,0.4558]
[1754201388217,30.0,3448.2,3447.9,0.4816]
[1754201388418,30.0,3448.1,3448.0,0.4558]
[1754201388595,30.27014135,3448.1,3447.3,0.872462]
[1754201388798,4.412,3448.0,3447.3,0.872462]
[1754201388972,4.412,3448.0,3444.5,0.2516241]
[1754201388973,30.0,3447.9,3446.4,3.0]
[1754201389173,30.0,3447.7,3446.5,0.9374]
[1754201389516,30.0,3447.5,3446.7,0.87246]
[1754201389672,4.412,3447.4,3446.7,0.87246]
[1754201390005,4.412,3447.3,3446.8,0.9064]
[1754201390300,4.412,3447.3,3446.9,0.9064]
[1754201390491,4.412,3447.3,3447.0,0.9064]
[1754201390692,4.412,3447.3,3446.8,0.177886]
[1754201390905,4.412,3447.3,3447.1,0.9064]
[1754201391210,30.0,3447.2,3445.7,6.72473548]
[1754201391431,0.61745605,3447.9,3446.8,0.872566]
[1754201391432,30.0,3447.0,3446.8,0.872566]
[1754201391622,4.416,3446.9,3445.8,0.67247355]
[1754201391788,4.416,3446.9,3445.8,3.67247355]
[1754201392107,4.416,3446.9,3445.9,1.5567831]
[1754201392267,4.416,3446.9,3446.0,0.9064]
[1754201392701,4.416,3446.9,3446.1,0.9064]
[1754201392901,4.416,3446.9,3445.9,1.1269831]
[1754201393106,4.416,3446.9,3446.2,0.9064]
[1754201393301,4.416,3446.9,3446.2,1.10973831]
[1754201393510,4.416,3446.9,3446.3,0.9064]
[1754201393807,4.416,3446.9,3446.4,0.9064]
[1754201393982,4.416,3446.9,3446.4,0.87266]
[1754201394177,4.416,3446.9,3446.5,0.9064]
[1754201394377,4.416,3446.9,3446.6,0.9064]
[1754201394595,4.416,3446.9,3446.7,0.9064]
[1754201394804,4.416,3446.9,3446.4,0.87266]
[1754201395010,4.416,3446.9,3446.8,0.9064]
[1754201396926,4.416,3446.9,3446.4,0.87266]
[1754201397111,4.416,3446.9,3446.6,0.4766]
[1754201397510,4.416,3446.9,3446.7,0.4298]
[1754201397818,4.416,3446.9,3446.8,0.9064]
[1754201398821,4.416,3446.9,3446.5,0.4766]
[1754201399123,30.0,3446.8,3446.6,0.4766]
[1754201399609,30.0,3446.8,3446.7,0.9064]
[1754201400048,30.0,3446.8,3446.4,0.4766]
[1754201400247,30.0,3446.8,3445.8,3.0]
[1754201400551,30.0,3446.8,3446.5,0.4766]
[1754201400750,30.0,3446.8,3446.6,0.4766]
[1754201401263,30.0,3446.6,3446.1,0.872756]
[1754201401561,34.413,3446.5,3446.4,0.4766]
[1754201401740,34.413,3446.5,3446.4,0.9064]
[1754201401916,0.4891,3447.4,3446.4,0.9064]
[1754201402146,30.0,3447.2,3446.5,0.9064]
[1754201402343,30.0,3447.2,3446.3,0.872716]
[1754201402650,30.0,3447.2,3446.6,0.9064]
[1754201402835,30.0,3447.2,3446.1,3.0]
[1754201403040,30.0,3447.2,3446.2,0.4766]
[1754201403225,30.4891,3447.1,3446.2,0.9064]
[1754201403572,30.0,3446.9,3446.2,0.9064]
[1754201403751,30.0,3446.9,3446.2,0.4298]
[1754201403931,4.412,3446.8,3446.3,0.4766]
[1754201404133,30.0,3446.7,3446.4,0.4298]
[1754201404349,30.0,3446.7,3446.5,0.4766]
[1754201404654,4.412,3446.8,3446.5,0.4766]
[1754201404655,4.412,3446.8,3446.6,0.4298]
[1754201404960,4.412,3446.8,3446.7,0.9064]
[1754201405330,4.412,3446.8,3446.7,0.4766]
[1754201405665,30.0,3447.2,3446.7,0.9064]
[1754201405957,4.412,3447.1,3446.8,0.9064]
[1754201406117,7.15,3447.6,3446.3,3.0]
[1754201406316,30.0,3447.4,3446.4,1.90788933]
[1754201406613,30.0,3447.2,3446.5,0.9064]
[1754201406828,30.0,3447.2,3446.4,1.00148933]
[1754201406829,30.0,3447.8,3446.7,3.0]
[1754201407033,30.0,3447.6,3446.8,0.9064]
[1754201407342,30.0,3447.6,3446.9,0.9064]
[1754201407559,30.0,3447.6,3446.7,4.06311355]
[1754201407742,30.0,3448.0,3446.8,1.9851849]
[1754201407943,1.744,3448.2,3447.1,3.0]
[1754201407944,4.414,3447.9,3447.1,3.0]
[1754201408145,30.0,3447.8,3447.2,0.93540905]
[1754201408348,30.0,3447.8,3447.1,3.0]
[1754201408349,30.0,3447.8,3447.3,0.9064]
[1754201408554,4.415,3447.7,3447.4,0.9064]
[1754201408781,4.415,3447.7,3447.5,0.4766]
[1754201408941,4.415,3447.7,3447.5,0.4298]
[1754201409148,4.415,3447.7,3447.6,0.4766]
[1754201409972,4.415,3447.7,3447.6,0.9064]
[1754201410878,9.2081,3448.4,3447.6,0.9064]
[1754201411094,30.0,3448.2,3447.6,0.45880568]
[1754201411288,30.0,3448.2,3447.7,0.4766]
[1754201411588,30.0,3448.2,3447.5,0.02900652]
[1754201411773,30.0,3448.2,3447.8,0.4766]
[1754201411976,30.0,3448.1,3447.8,0.4766]
[1754201412149,30.0,3447.9,3447.8,0.4766]
[1754201413070,30.0,3447.9,3447.6,0.4766]
[1754201413389,30.0,3447.9,3447.7,0.4766]
[1754201413684,4.413,3447.8,3447.7,0.4766]
[1754201414046,4.413,3447.8,3447.5,0.4766]
[1754201414453,4.413,3447.8,3447.5,0.9532]
[1754201414654,4.413,3447.8,3447.6,0.002]
[1754201414922,30.0,3447.7,3447.6,0.002]
[1754201415391,32.89324552,3447.7,3447.6,0.002]
[1754201416818,2.89324552,3447.7,3447.6,0.002]
[1754201417018,30.9593,3447.7,3447.6,0.002]
[1754201417215,30.0,3447.7,3447.6,0.002]
[1754201417592,34.413,3447.7,3447.6,0.002]
[1754201417906,34.413,3447.7,3447.6,0.9084]
[1754201420943,34.413,3447.7,3447.6,0.002]
[1754201421111,34.9027,3447.7,3447.6,0.002]
[1754201422239,37.64065676,3447.7,3447.6,0.002]
[1754201422435,40.20459036,3447.7,3447.6,0.002]
[1754201425832,6.96789036,3447.7,3447.6,0.002]
[1754201426032,4.6829336,3447.7,3447.6,0.002]
[1754201426244,34.413,3447.7,3447.6,0.002]
[1754201427546,34.9027,3447.7,3447.6,0.002]
[1754201427712,35.3557,3447.7,3447.6,0.002]
[1754201428043,37.6497,3447.7,3447.6,0.002]
[1754201428340,40.78786244,3447.7,3447.6,0.002]
[1754201433129,10.78786244,3447.7,3447.6,0.002]
[1754201433328,37.91961537,3447.7,3447.6,0.002]
[1754201436651,33.50661537,3447.7,3447.6,0.002]
[1754201436851,37.92561537,3447.7,3447.6,0.002]
[1754201437873,37.47261537,3447.7,3447.6,0.002]
[1754201438450,36.98291537,3447.7,3447.6,0.002]
[1754201438682,39.85116244,3447.7,3447.6,0.002]
[1754201439155,39.85100227,3447.7,3447.6,0.002]
[1754201441242,9.85100227,3447.7,3447.6,0.002]
[1754201441442,36.9827552,3447.7,3447.6,0.4753]
[1754201441942,34.6887552,3447.7,3447.6,0.002]
[1754201442288,34.6887552,3447.7,3447.6,0.9131]
[1754201443372,34.6887552,3447.7,3447.6,0.4753]
[1754201444078,30.2697552,3447.7,3447.6,0.9131]
[1754201444257,34.6917552,3447.7,3447.6,0.9131]
[1754201446925,40.79670227,3447.7,3447.6,0.002]
[1754201448788,10.79670227,3447.7,3447.6,0.002]
[1754201449022,7.9284552,3447.7,3447.6,0.002]
[1754201449191,37.9284552,3447.7,3447.6,0.002]
[1754201449390,32.5637552,3447.7,3447.6,0.002]
[1754201449593,36.9857552,3447.7,3447.6,0.002]
[1754201450021,37.9139552,3447.7,3447.6,0.002]
[1754201450212,40.78220227,3447.7,3447.6,0.002]
[1754201451390,10.78220227,3447.7,3447.6,0.002]
[1754201451595,37.9139552,3447.7,3447.6,0.002]
[1754201452380,7.9139552,3447.7,3447.6,0.002]
[1754201452584,38.2048552,3447.7,3447.6,0.002]
[1754201452786,37.9139552,3447.7,3447.6,0.002]
[1754201453187,37.4505552,3447.7,3447.6,0.002]
[1754201453397,39.85400227,3447.7,3447.6,0.002]
[1754201455125,40.78220227,3447.7,3447.6,0.002]
[1754201456487,10.78220227,3447.7,3447.6,0.002]
[1754201456692,36.9857552,3447.7,3447.6,0.002]
[1754201457892,37.9139552,3447.7,3447.6,0.002]
[1754201458292,37.91428247,3447.7,3447.6,0.002]
[1754201459628,7.91428247,3447.7,3447.6,0.002]
[1754201459832,37.91428247,3447.7,3447.6,0.002]
[1754201460125,40.78252954,3447.7,3447.6,0.002]
[1754201460426,39.85132954,3447.7,3447.6,0.002]
[1754201460801,39.85135114,3447.7,3447.6,0.002]
[1754201462614,40.14225114,3447.7,3447.6,0.002]
[1754201462793,39.85135114,3447.7,3447.6,0.002]
[1754201463425,39.85435114,3447.7,3447.6,0.002]
[1754201468040,40.78255114,3447.7,3447.6,0.002]
[1754201468784,17.93255114,3447.7,3447.6,0.002]
[1754201468945,47.93255114,3447.7,3447.6,0.002]
[1754201472954,48.22345114,3447.7,3447.6,0.002]
[1754201473816,18.22345114,3447.7,3447.6,0.002]
[1754201474137,48.22345114,3447.7,3447.6,0.002]
[1754201475725,47.76005114,3447.7,3447.6,0.002]
[1754201475940,47.00435114,3447.7,3447.6,0.002]
[1754201476452,47.00435114,3447.7,3447.6,0.953]
[1754201477342,47.00435114,3447.7,3447.6,0.4992]
[1754201477749,47.00435114,3447.7,3447.6,0.002]
[1754201477920,17.00435114,3447.7,3447.6,0.002]
[1754201478114,47.00435114,3447.7,3447.6,0.002]
[1754201484954,47.00435114,3447.7,3447.6,0.5014]
[1754201485354,17.00435114,3447.7,3447.6,0.5014]
[1754201485560,47.00435114,3447.7,3447.6,0.5014]
[1754201486058,47.00462068,3447.7,3447.6,0.5014]
[1754201486758,47.00462068,3447.7,3447.6,0.002]
[1754201488666,17.00462068,3447.7,3447.6,0.002]
[1754201488968,46.73424707,3447.7,3447.6,0.002]
[1754201489166,47.00455426,3447.7,3447.6,0.002]
[1754201489836,17.00455426,3447.7,3447.6,0.002]
[1754201490033,47.00455426,3447.7,3447.6,0.002]
[1754201490866,47.00455426,3447.7,3447.6,0.5014]
[1754201491673,39.71430719,3447.7,3447.6,0.5014]
[1754201491980,41.83330719,3447.7,3447.6,0.9488]
[1754201494388,36.97730719,3447.7,3447.6,0.002]
[1754201494538,40.30945426,3447.7,3447.6,0.002]
[1754201494740,40.78065426,3447.7,3447.6,0.002]
[1754201495246,36.97730719,3447.7,3447.6,0.002]
[1754201495632,36.97730719,3447.7,3447.6,0.9488]
[1754201496272,36.97730719,3447.7,3447.6,0.5014]
[1754201496779,34.68330719,3447.7,3447.6,0.9488]
[1754201497964,34.68430719,3447.7,3447.6,0.9488]
[1754201498760,36.12993968,3447.7,3447.6,0.002]
[1754201498977,38.34513968,3447.7,3447.6,0.002]
[1754201499874,2.56430719,3447.7,3447.6,0.002]
[1754201500172,32.01430719,3447.7,3447.6,0.002]
[1754201500364,34.68630719,3447.7,3447.6,0.9488]
[1754201500565,34.68598384,3447.7,3447.6,0.9488]
[1754201503238,34.68587106,3447.7,3447.6,0.9488]
[1754201504273,34.68587106,3447.7,3447.6,0.002]
[1754201504479,37.55411813,3447.7,3447.6,0.002]
[1754201505463,34.68587106,3447.7,3447.6,0.002]
[1754201506247,34.68587106,3447.7,3447.6,0.5014]
[1754201508479,34.68587106,3447.7,3447.6,0.002]
[1754201510547,35.65197106,3447.7,3447.6,0.002]
[1754201511973,37.94597106,3447.7,3447.6,0.002]
[1754201512170,10.81421813,3447.7,3447.6,0.002]
[1754201512372,37.94597106,3447.7,3447.6,0.002]
[1754201512948,36.97987106,3447.7,3447.6,0.002]
[1754201513979,36.71,3447.7,3447.6,0.002]
[1754201514183,36.97990618,3447.7,3447.6,0.002]